bitfinex/quotes_SOLUSD_20250321
["timestamp","ask_amount","ask_price","bid_price","bid_amount"]
[1742561514023,15.68236369,126.26,126.24,0.063]
[1742561514423,15.68236369,126.25,126.24,0.063]
[1742561516730,23.60246369,126.26,126.24,0.063]
[1742561516931,15.68236369,126.26,126.24,0.063]
[1742561518026,23.60256369,126.26,126.24,0.063]
[1742561518425,15.68236369,126.26,126.24,0.063]
[1742561519022,23.60256369,126.26,126.24,0.063]
[1742561520732,33.45258039,126.28,126.24,0.063]
[1742561521029,15.71236369,126.28,126.24,0.063]
[1742561521212,23.63136369,126.28,126.24,0.063]
[1742561521415,7.949,126.28,126.24,0.063]
[1742561521723,15.71236369,126.28,126.24,15.74536369]
[1742561521915,0.03,126.28,126.24,15.74536369]
[1742561522230,0.03,126.28,126.25,15.68236369]
[1742561522439,0.03,126.28,126.27,23.78556369]
[1742561523005,0.03,126.28,126.27,104.73316369]
[1742561523525,0.03,126.28,126.27,89.0508]
[1742561523826,0.03,126.28,126.27,104.73316369]
[1742561525440,0.03,126.28,126.27,89.0508]
[1742561525730,0.03,126.28,126.27,80.9476]
[1742561525731,15.71236369,126.28,126.27,80.9476]
[1742561526119,0.14216157,126.27,126.24,0.063]
[1742561526319,15.68236369,126.25,126.24,0.063]
[1742561526520,17.25689568,126.26,126.24,0.063]
[1742561527155,26.08979637,126.26,126.24,0.063]
[1742561527644,24.51526438,126.26,126.24,0.063]
[1742561528437,32.43546438,126.26,126.24,0.063]
[1742561529441,24.51526438,126.25,126.24,0.063]
[1742561530144,34.00999637,126.26,126.24,0.063]
[1742561531444,41.82999637,126.26,126.24,0.063]
[1742561534039,9.39453199,126.26,126.24,0.063]
[1742561534240,24.65742595,126.27,126.24,0.063]
[1742561535244,26.11979637,126.28,126.24,0.063]
[1742561535437,0.03,126.28,126.24,24.57826438]
[1742561536125,24.54526438,126.28,126.24,0.063]
[1742561536742,0.03,126.28,126.24,32.49956438]
[1742561539032,0.03,126.28,126.25,30.68416438]
[1742561539231,0.03,126.28,126.26,26.05596438]
[1742561540153,0.03,126.28,126.26,1.5407]
[1742561540525,24.54526438,126.28,126.25,6.1689]
[1742561540732,32.46436438,126.28,126.25,6.1689]
[1742561541166,24.54526438,126.28,126.25,6.1689]
[1742561541628,0.03,126.28,126.25,6.1689]
[1742561542247,24.54526438,126.28,126.25,6.1689]
[1742561543049,0.03,126.28,126.25,6.1689]
[1742561543746,0.03,126.28,126.25,318.1689]
[1742561544652,0.03,126.28,126.25,6.1689]
[1742561546053,24.51526438,126.27,126.24,81.0106]
[1742561546459,24.51526438,126.27,126.24,0.063]
[1742561546957,24.97174909,126.28,126.24,0.063]
[1742561547159,15.68585852,126.27,126.24,0.063]
[1742561547653,15.68585852,126.25,126.24,0.063]
[1742561549560,23.60655852,126.25,126.24,0.063]
[1742561549766,24.03304323,126.25,126.24,0.063]
[1742561549941,24.1752048,126.25,126.24,0.063]
[1742561552841,105.56828774,126.25,126.24,0.063]
[1742561553745,42.82485366,126.25,126.24,0.063]
[1742561555366,20.14216157,126.2,126.19,0.03]
[1742561555573,45.48687522,126.2,126.19,0.03]
[1742561556154,45.62903679,126.2,126.19,0.03]
[1742561557055,53.55293679,126.2,126.19,0.03]
[1742561564389,72.20258565,126.2,126.19,0.0001]
[1742561564886,76.087164,126.2,126.19,0.0001]
[1742561565086,20.14216157,126.16,126.15,0.063]
[1742561565290,45.48687522,126.16,126.15,0.063]
[1742561566063,53.55543679,126.16,126.15,0.063]
[1742561566270,19.21829514,126.15,126.13,0.063]
[1742561566465,17.68687522,126.14,126.13,0.063]
[1742561567163,26.57113002,126.14,126.13,0.063]
[1742561568293,34.49873002,126.14,126.13,0.063]
[1742561568680,26.57113002,126.14,126.13,0.063]
[1742561569488,34.49873002,126.14,126.13,0.063]
[1742561569692,54.91084045,126.14,126.13,0.063]
[1742561570375,26.71329159,126.14,126.13,0.063]
[1742561570885,26.57113002,126.14,126.13,0.063]
[1742561571188,26.71329159,126.14,126.13,0.063]
[1742561571587,34.64089159,126.14,126.13,0.063]
[1742561573061,26.57113002,126.14,126.13,0.063]
[1742561573976,2.0010167,126.14,126.13,0.063]
[1742561574175,26.57113002,126.14,126.13,0.063]
[1742561575180,34.37113002,126.14,126.13,0.063]
[1742561577591,42.29873002,126.14,126.13,0.063]
[1742561580908,42.44089159,126.14,126.13,0.063]
[1742561581577,61.09054045,126.14,126.13,0.063]
[1742561589184,52.24578214,126.14,126.13,0.063]
[1742561594608,33.59613328,126.14,126.13,0.063]
[1742561596485,52.24578214,126.14,126.13,0.063]
[1742561597290,19.21829514,126.13,126.11,0.063]
[1742561597491,99.41960218,126.12,126.11,0.063]
[1742561597690,20.0,126.09,126.08,0.03]
[1742561597893,45.099887,126.09,126.08,0.03]
[1742561598210,45.66853328,126.09,126.08,0.03]
[1742561600214,53.59933328,126.09,126.08,0.03]
[1742561608413,72.24898214,126.09,126.08,0.0001]
[1742561611011,53.59933328,126.09,126.08,0.0001]
[1742561613118,72.24898214,126.09,126.08,0.0001]
[1742561615144,0.56864628,126.08,126.07,0.0101]
[1742561615425,16.29400129,126.08,126.07,0.0101]
[1742561616019,24.22540129,126.08,126.07,0.0101]
[1742561621922,7.78,126.08,126.07,0.0101]
[1742561622316,27.78,126.08,126.07,0.0101]
[1742561624032,7.78,126.08,126.07,6.3479]
[1742561624222,27.78,126.08,126.07,7.9205]
[1742561625135,7.78,126.08,126.07,7.9205]
[1742561625552,0.063,126.09,126.07,7.9205]
[1742561625715,0.063,126.09,126.07,23.64585501]
[1742561626035,0.063,126.09,126.08,15.72535501]
[1742561626339,0.063,126.09,126.07,31.57785501]
[1742561627542,0.063,126.09,126.08,15.72535501]
[1742561629034,0.063,126.09,126.08,23.65675501]
[1742561630030,0.063,126.09,126.08,42.30640387]
[1742561630231,0.03,126.11,126.09,18.64964886]
[1742561630536,0.03,126.11,126.1,42.36110387]
[1742561631256,0.03,126.15,126.11,7.9295]
[1742561631844,0.03,126.15,126.12,15.72535501]
[1742561632142,0.03,126.15,126.1,335.71145501]
[1742561632143,15.75535501,126.15,126.1,335.71145501]
[1742561632443,15.72535501,126.13,126.1,7.9861]
[1742561632827,23.50535501,126.12,126.1,7.9861]
[1742561633024,23.50535501,126.12,126.07,21.82355501]
[1742561633232,15.72535501,126.11,126.07,6.0982]
[1742561633455,7.9302,126.1,126.07,6.0982]
[1742561634450,7.9302,126.1,126.07,21.82355501]
[1742561635440,7.9295,126.11,126.07,21.82355501]
[1742561637759,7.9295,126.11,126.08,15.72535501]
[1742561637948,7.9295,126.11,126.07,21.82355501]
[1742561638738,7.9295,126.11,126.08,15.72535501]
[1742561640565,23.50535501,126.12,126.07,6.0982]
[1742561640566,15.7092,126.12,126.1,15.72535501]
[1742561640739,7.78,126.12,126.1,15.72535501]
[1742561640936,15.7091,126.12,126.1,15.72535501]
[1742561641141,15.7091,126.12,126.09,15.72535501]
[1742561642240,7.78,126.12,126.09,15.72535501]
[1742561642556,15.709,126.12,126.09,15.72535501]
[1742561642759,7.9283,126.13,126.09,15.72535501]
[1742561642934,15.7083,126.13,126.09,15.72535501]
[1742561643537,31.43365501,126.13,126.09,15.72535501]
[1742561643744,15.72535501,126.12,126.07,102.77115501]
[1742561644257,15.72535501,126.12,126.08,15.72535501]
[1742561644859,7.9295,126.11,126.08,15.72535501]
[1742561646562,7.9295,126.11,126.07,102.77115501]
[1742561649847,7.9295,126.11,126.07,87.0458]
[1742561649848,43.47875501,126.11,126.07,87.0458]
[1742561650060,15.72535501,126.09,126.07,80.9577]
[1742561650283,15.72535501,126.09,126.07,0.0101]
[1742561650442,15.72535501,126.1,126.07,0.0101]
[1742561650875,7.9308,126.09,126.07,0.0101]
[1742561652460,15.7108,126.09,126.07,0.0101]
[1742561652769,31.43615501,126.09,126.07,0.0101]
[1742561654579,15.72535501,126.08,126.07,0.0101]
[1742561654745,23.50535501,126.08,126.07,0.0101]
[1742561655375,7.78,126.08,126.07,0.0101]
[1742561656574,15.7114,126.08,126.07,0.0101]
[1742561657447,7.78,126.08,126.07,0.0101]
[1742561658377,15.7114,126.08,126.07,0.0101]
[1742561660563,7.78,126.08,126.07,0.0101]
[1742561661245,7.9303,126.1,126.07,15.73545501]
[1742561662174,7.9303,126.1,126.07,0.0101]
[1742561662780,15.72535501,126.09,126.07,0.0101]
[1742561663569,15.72535501,126.08,126.07,0.0101]
[1742561663864,16.29400129,126.09,126.07,0.0101]
[1742561664373,7.9314,126.08,126.07,0.0101]
[1742561668069,23.65675501,126.08,126.07,0.0101]
[1742561668246,24.22540129,126.08,126.07,0.0101]
[1742561671361,42.87505015,126.08,126.07,0.0101]
[1742561677387,24.22540129,126.08,126.07,0.0101]
[1742561677556,42.87505015,126.08,126.07,0.0101]
[1742561680371,0.28432314,126.03,126.02,0.03]
[1742561680573,24.05400129,126.03,126.02,0.03]
[1742561681292,50.63825015,126.03,126.02,0.03]
[1742561682582,36.29400129,126.01,126.0,0.03]
[1742561682873,54.94365015,126.01,126.0,0.03]
[1742561683078,36.29400129,126.01,126.0,0.03]
[1742561683272,44.22980129,126.01,126.0,0.03]
[1742561684755,36.29400129,126.01,126.0,0.03]
[1742561684961,20.0,126.01,126.0,0.03]
[1742561687756,27.9358,126.01,126.0,0.03]
[1742561688368,20.0,126.01,126.0,0.03]
[1742561692062,1.57453199,126.04,126.0,15.75535501]
[1742561692063,15.72535501,126.04,126.0,15.75535501]
[1742561692578,0.063,126.02,126.0,15.75535501]
[1742561693459,0.063,126.02,126.0,0.03]
[1742561694074,15.78835501,126.02,126.0,0.03]
[1742561694679,0.063,126.02,126.0,0.03]
[1742561695082,0.063,126.02,126.0,15.75535501]
[1742561695277,36.00967815,126.01,126.0,0.03]
[1742561695467,36.29400129,126.01,126.0,0.03]
[1742561697384,44.22980129,126.01,126.0,0.03]
[1742561697974,64.45398214,126.01,126.0,0.03]
[1742561698375,44.22980129,126.01,126.0,0.03]
[1742561699176,28.50444628,126.01,126.0,0.03]
[1742561700089,44.22980129,126.01,126.0,0.03]
[1742561700886,20.0,126.01,126.0,0.03]
[1742561702282,27.9358,126.01,126.0,0.03]
[1742561704697,20.0,126.01,126.0,0.03]
[1742561704890,23.72385501,126.02,126.0,0.03]
[1742561704891,7.9985,126.02,126.0,0.03]
[1742561705202,0.063,126.02,126.0,0.03]
[1742561707717,0.063,126.02,126.01,15.72535501]
[1742561708002,0.063,126.02,126.01,24.03995501]
[1742561708578,0.063,126.02,126.01,31.97575501]
[1742561709693,0.063,126.02,126.01,50.62540387]
[1742561709895,0.063,126.02,126.01,131.57300387]
[1742561710994,7.76,126.09,126.02,18.64964886]
[1742561711200,7.76,126.09,126.07,15.72535501]
[1742561711408,7.76,126.09,126.02,99.59724886]
[1742561711409,7.76,126.09,126.08,15.72535501]
[1742561711588,0.59864628,126.11,126.08,15.72535501]
[1742561712910,0.03,126.11,126.1,15.72535501]
[1742561714694,0.03,126.11,126.1,23.65555501]
[1742561715305,0.03,126.11,126.1,31.33155501]
[1742561716009,0.03,126.11,126.1,49.98120387]
[1742561716212,0.03,126.11,126.1,112.88262391]
[1742561716401,0.03,126.11,126.1,114.46787819]
[1742561716601,0.03,126.11,126.1,51.56645815]
[1742561717208,0.03,126.13,126.11,18.64964886]
[1742561717399,0.03,126.13,126.12,69.32011736]
[1742561717600,0.03,126.13,126.12,150.26771736]
[1742561718298,0.03,126.15,126.13,107.795072]
[1742561718508,0.03,126.15,126.14,24.5427405]
[1742561718698,0.03,126.15,126.14,32.4703405]
[1742561718897,0.03,126.15,126.14,34.05506619]
[1742561719096,0.03,126.15,126.14,346.05506619]
[1742561719313,0.03,126.15,126.14,344.4703405]
[1742561719816,15.7457,126.22,126.15,18.64964886]
[1742561720001,15.7457,126.22,126.19,24.5427405]
[1742561720197,7.823,126.22,126.19,24.5427405]
[1742561720397,0.063,126.22,126.19,24.5427405]
[1742561720799,0.063,126.22,126.21,24.5427405]
[1742561722803,0.063,126.22,126.21,32.4660405]
[1742561724122,0.063,126.22,126.21,24.5427405]
[1742561733013,0.063,126.22,126.2,24.5427405]
[1742561733827,0.063,126.22,126.18,24.5427405]
[1742561734046,24.5427405,126.2,126.16,80.9476]
[1742561734206,20.0,126.21,126.14,80.9476]
[1742561734409,24.5427405,126.2,126.15,24.5427405]
[1742561736132,7.9245,126.19,126.15,24.5427405]
[1742561737129,7.9245,126.19,126.15,32.4697405]
[1742561737428,7.9245,126.19,126.16,24.5427405]
[1742561737631,7.9245,126.19,126.15,24.5427405]
[1742561739630,32.4672405,126.19,126.14,105.4903405]
[1742561739830,24.5427405,126.18,126.14,80.9476]
[1742561740029,24.5427405,126.17,126.14,80.9476]
[1742561740231,24.5427405,126.17,126.12,113.3193405]
[1742561740419,24.5427405,126.18,126.13,24.5427405]
[1742561741436,7.9258,126.17,126.13,24.5427405]
[1742561742217,0.56864628,126.2,126.14,24.5427405]
[1742561742447,25.11138678,126.2,126.15,24.5427405]
[1742561742935,25.11138678,126.2,126.15,336.5427405]
[1742561743132,24.5427405,126.19,126.15,312.0]
[1742561743517,32.4676405,126.19,126.14,32.4702405]
[1742561743931,32.4676405,126.19,126.14,7.9275]
[1742561744137,32.4676405,126.19,126.14,32.4702405]
[1742561744721,32.4676405,126.19,126.14,24.5427405]
[1742561744935,24.5427405,126.18,126.13,113.4814405]
[1742561745133,24.5427405,126.18,126.13,105.5533405]
[1742561745421,7.9258,126.17,126.13,105.5533405]
[1742561745817,32.4685405,126.17,126.13,105.5533405]
[1742561746443,32.4685405,126.17,126.13,417.5533405]
[1742561746636,7.9258,126.17,126.13,105.5533405]
[1742561748330,24.5427405,126.16,126.13,0.063]
[1742561749142,24.5427405,126.15,126.13,0.063]
[1742561749334,24.5427405,126.14,126.13,0.063]
[1742561749736,24.5427405,126.15,126.13,0.063]
[1742561750227,0.56864628,126.16,126.13,0.063]
[1742561750429,40.2088405,126.17,126.13,0.063]
[1742561751351,25.11138678,126.16,126.13,0.063]
[1742561751650,24.5427405,126.15,126.13,0.063]
[1742561753431,24.5427405,126.14,126.13,0.063]
[1742561753953,32.4703405,126.14,126.13,0.063]
[1742561756752,24.5427405,126.14,126.13,0.063]
[1742561757653,32.4703405,126.14,126.13,0.063]
[1742561758855,24.5427405,126.14,126.13,0.063]
[1742561759045,32.4701405,126.15,126.13,0.063]
[1742561759249,33.03808678,126.16,126.13,0.063]
[1742561759554,40.2087405,126.17,126.13,0.063]
[1742561761053,32.4687405,126.17,126.13,0.063]
[1742561761232,31.37983154,126.17,126.13,0.063]
[1742561761637,23.45383154,126.17,126.13,0.063]
[1742561762251,31.37963154,126.17,126.13,0.063]
[1742561763753,15.71383154,126.16,126.13,0.063]
[1742561764060,20.0,126.19,126.14,15.71383154]
[1742561764354,35.71383154,126.19,126.14,15.71383154]
[1742561764555,15.71383154,126.19,126.14,15.71383154]
[1742561764947,7.74,126.2,126.13,104.51163154]
[1742561764948,15.71383154,126.18,126.13,104.51163154]
[1742561765454,15.71383154,126.18,126.13,112.43983154]
[1742561765848,23.63863154,126.19,126.14,15.71383154]
[1742561766854,0.03,126.17,126.14,23.64133154]
[1742561767563,0.03,126.17,126.14,7.9275]
[1742561767861,0.03,126.17,126.15,15.71383154]
[1742561768243,0.03,126.17,126.15,23.64073154]
[1742561769353,0.03,126.17,126.16,15.71383154]
[1742561770457,0.03,126.17,126.16,23.64023154]
[1742561771047,0.03,126.17,126.14,15.71383154]
[1742561771249,0.03,126.17,126.13,7.8502]
[1742561771453,0.03,126.17,126.13,23.56403154]
[1742561773145,0.03,126.17,126.13,31.49223154]
[1742561773466,15.74383154,126.17,126.13,31.49223154]
[1742561775166,15.74383154,126.17,126.13,15.7784]
[1742561775373,15.74383154,126.17,126.13,31.49223154]
[1742561775666,23.66963154,126.17,126.13,31.49223154]
[1742561776174,23.66963154,126.17,126.13,23.56403154]
[1742561776350,23.66963154,126.17,126.13,7.8502]
[1742561777267,23.66963154,126.17,126.13,15.7783]
[1742561777442,15.74383154,126.17,126.13,31.49213154]
[1742561778071,0.03,126.17,126.13,31.49213154]
[1742561778549,0.03,126.17,126.16,15.71383154]
[1742561778885,0.03,126.17,126.16,23.64023154]
[1742561780968,0.03,126.17,126.16,104.58783154]
[1742561782473,0.03,126.17,126.16,123.2374804]
[1742561784370,0.03,126.17,126.16,104.58783154]
[1742561784574,0.03,126.17,126.16,96.66143154]
[1742561784776,0.03,126.17,126.16,104.58783154]
[1742561786776,0.03,126.17,126.16,123.2374804]
[1742561789763,0.03,126.17,126.16,104.58783154]
[1742561790081,0.03,126.17,126.16,416.58783154]
[1742561791184,0.03,126.17,126.16,104.58783154]
[1742561792778,0.03,126.17,126.16,96.66143154]
[1742561793368,0.03,126.17,126.16,104.58783154]
[1742561793787,0.03,126.17,126.16,96.66143154]
[1742561794177,0.03,126.17,126.16,104.58783154]
[1742561798584,0.03,126.17,126.16,123.2374804]
[1742561799388,0.03,126.17,126.16,131.40089458]
[1742561800191,0.03,126.17,126.16,443.40089458]
[1742561800485,0.03,126.17,126.16,441.8164804]
[1742561802683,0.0001,126.17,126.16,442.38512668]
[1742561802982,0.063,126.22,126.17,80.9475]
[1742561803187,0.063,126.22,126.21,15.71383154]
[1742561803892,0.063,126.22,126.21,115.3109804]
[1742561804473,0.063,126.22,126.21,123.2342804]
[1742561806103,0.063,126.22,126.21,435.2342804]
[1742561806304,0.063,126.22,126.21,312.0]
[1742561806601,0.063,126.22,126.19,96.66133154]
[1742561807498,0.063,126.22,126.19,80.9475]
[1742561808400,15.77683154,126.22,126.19,80.9475]
[1742561808598,23.63713154,126.21,126.17,80.9475]
[1742561810196,23.63713154,126.21,126.17,96.66133154]
[1742561810399,7.9233,126.21,126.17,96.66133154]
[1742561811081,7.9233,126.21,126.15,0.063]
[1742561811082,15.71383154,126.2,126.15,0.063]
[1742561811293,15.71383154,126.19,126.15,0.063]
[1742561811492,23.41383154,126.2,126.15,15.77683154]
[1742561812100,7.7,126.2,126.15,0.063]
[1742561812282,7.7,126.2,126.15,15.77683154]
[1742561812283,23.41383154,126.2,126.15,15.77683154]
[1742561813001,7.9245,126.19,126.15,15.77683154]
[1742561814207,7.9245,126.19,126.15,0.063]
[1742561814502,23.63833154,126.19,126.15,0.063]
[1742561814699,15.71383154,126.18,126.15,0.063]
[1742561815003,7.9264,126.16,126.15,0.063]
[1742561815582,7.926,126.17,126.15,0.063]
[1742561816803,23.63983154,126.17,126.15,0.063]
[1742561817180,17.30553154,126.16,126.15,0.063]
[1742561817416,25.00553154,126.16,126.15,0.063]
[1742561817621,20.0,126.13,126.12,0.063]
[1742561817922,20.0,126.13,126.03,312.0]
[1742561817923,100.71233597,126.13,126.03,312.0]
[1742561818128,0.42648471,126.12,126.03,319.934]
[1742561818291,20.56864628,126.12,126.06,15.71383154]
[1742561818601,20.0,126.12,126.03,7.934]
[1742561818801,20.0,126.12,126.04,18.64964886]
[1742561819017,20.0,126.12,126.09,15.71383154]
[1742561819191,1.5169,126.14,126.07,18.64964886]
[1742561819402,7.7,126.15,126.07,18.64964886]
[1742561819691,7.7,126.15,126.06,7.7]
[1742561819692,20.0,126.12,126.03,18.933972]
[1742561820024,0.42648471,126.11,126.09,24.56430616]
[1742561820300,8.38,126.15,126.1,24.56430616]
[1742561820480,0.14216157,126.16,126.11,24.56430616]
[1742561820689,0.28432314,126.17,126.13,24.56430616]
[1742561820898,17.54379308,126.18,126.11,18.64964886]
[1742561821116,17.54379308,126.18,126.15,24.56430616]
[1742561821487,17.54379308,126.18,126.16,24.56430616]
[1742561821801,17.54379308,126.18,126.17,24.56430616]
[1742561822293,24.9116293,126.22,126.17,24.56430616]
[1742561822489,20.0,126.21,126.14,8.4]
[1742561822694,20.0,126.21,126.18,24.56430616]
[1742561822897,20.0,126.21,126.17,24.56430616]
[1742561823090,20.0,126.21,126.18,24.56430616]
[1742561823399,8.463,126.22,126.18,24.56430616]
[1742561823400,0.063,126.22,126.2,24.56430616]
[1742561823597,0.063,126.22,126.21,24.56430616]
[1742561825002,0.063,126.22,126.21,344.48760616]
[1742561825388,0.063,126.22,126.21,24.56430616]
[1742561825585,24.62730616,126.22,126.16,14.1882]
[1742561825886,24.62730616,126.22,126.15,32.49120616]
[1742561825887,24.56430616,126.2,126.15,32.49120616]
[1742561826082,24.56430616,126.18,126.13,30.82630616]
[1742561826486,33.02430616,126.2,126.15,24.56430616]
[1742561826908,24.56430616,126.18,126.14,24.56430616]
[1742561827112,8.46,126.2,126.13,6.262]
[1742561827113,24.56430616,126.17,126.13,6.262]
[1742561827308,24.56430616,126.15,126.12,0.03]
[1742561827688,8.46,126.16,126.12,0.03]
[1742561828010,8.46,126.16,126.12,24.59430616]
[1742561828200,24.56430616,126.17,126.12,32.52320616]
[1742561829199,39.27826024,126.16,126.12,0.03]
[1742561829427,39.27826024,126.16,126.12,7.9588]
[1742561830012,8.46,126.19,126.13,39.27826024]
[1742561830222,39.27826024,126.18,126.13,39.27826024]
[1742561830436,39.27826024,126.18,126.12,7.9588]
[1742561830727,39.27826024,126.17,126.12,47.23706024]
[1742561830928,39.27826024,126.17,126.12,128.18456024]
[1742561831101,8.46,126.19,126.12,128.18456024]
[1742561831306,39.27826024,126.18,126.13,39.27826024]
[1742561831503,39.27826024,126.18,126.12,88.9063]
[1742561831703,8.46,126.19,126.12,128.18456024]
[1742561831704,39.27826024,126.17,126.12,128.18456024]
[1742561832233,39.27826024,126.16,126.12,80.9775]
[1742561832440,39.27826024,126.17,126.12,47.23706024]
[1742561833198,39.27826024,126.17,126.12,7.9588]
[1742561833523,39.27826024,126.17,126.12,47.23706024]
[1742561833733,39.27826024,126.17,126.12,39.30826024]
[1742561834210,39.27826024,126.17,126.12,351.30826024]
[1742561834413,39.27826024,126.17,126.12,312.03]
[1742561834642,39.27826024,126.16,126.12,0.03]
[1742561835010,39.27826024,126.15,126.12,0.03]
[1742561835209,39.27826024,126.14,126.12,0.03]
[1742561835521,39.27826024,126.15,126.12,0.03]
[1742561836317,39.27826024,126.14,126.12,0.03]
[1742561836713,8.44,126.15,126.12,0.03]
[1742561836948,47.71826024,126.15,126.12,0.03]
[1742561837243,8.44,126.15,126.12,39.30826024]
[1742561837745,8.44,126.15,126.12,0.03]
[1742561838035,39.27826024,126.14,126.12,0.03]
[1742561838434,39.27826024,126.13,126.12,0.03]
[1742561839131,47.20656024,126.13,126.12,0.03]
[1742561840537,39.27826024,126.13,126.12,0.03]
[1742561841630,39.27826024,126.14,126.12,0.03]
[1742561841952,59.27826024,126.13,126.12,0.03]
[1742561842355,20.0,126.13,126.12,0.03]
[1742561843147,39.27826024,126.14,126.12,0.03]
[1742561843736,47.71826024,126.15,126.12,0.03]
[1742561844236,39.27826024,126.14,126.12,0.03]
[1742561845046,39.27826024,126.13,126.12,0.03]
[1742561849232,44.56492855,126.13,126.12,0.03]
[1742561849544,53.06187483,126.13,126.12,0.03]
[1742561850455,20.0,126.13,126.12,0.03]
[1742561850746,44.56492855,126.13,126.12,0.03]
[1742561851838,52.49322855,126.13,126.12,0.03]
[1742561853333,53.06187483,126.13,126.12,0.03]
[1742561854853,53.12487483,126.13,126.12,0.03]
[1742561855451,79.26433537,126.13,126.12,0.03]
[1742561855855,0.56864628,126.12,126.03,24.56492855]
[1742561856032,24.56492855,126.08,126.03,24.56492855]
[1742561856451,24.56492855,126.08,126.03,336.56492855]
[1742561856648,24.56492855,126.07,126.03,319.9341]
[1742561856837,24.56492855,126.07,126.03,312.0]
[1742561857046,24.56492855,126.06,126.02,0.063]
[1742561857458,8.18,126.07,126.02,0.063]
[1742561857646,24.56492855,126.06,126.02,0.063]
[1742561857978,32.74492855,126.07,126.02,32.56312855]
[1742561858143,24.56492855,126.06,126.02,7.9982]
[1742561858345,24.56492855,126.05,126.02,7.9982]
[1742561858571,24.56492855,126.04,126.02,0.063]
[1742561859652,8.18,126.07,126.02,0.063]
[1742561859859,24.56492855,126.06,126.02,0.063]
[1742561860054,24.56492855,126.05,126.02,0.063]
[1742561860360,8.18,126.07,126.02,0.063]
[1742561860549,24.56492855,126.05,126.02,0.063]
[1742561861358,24.56492855,126.06,126.02,0.063]
[1742561862055,20.0,126.08,126.03,24.56492855]
[1742561862359,20.0,126.08,126.05,24.56492855]
[1742561862555,24.56492855,126.1,126.06,24.56492855]
[1742561862757,8.16,126.11,126.07,24.56492855]
[1742561862937,8.16,126.11,126.08,24.56492855]
[1742561863140,8.16,126.11,126.07,24.56492855]
[1742561863757,8.16,126.11,126.08,7.9314]
[1742561863939,24.62792855,126.13,126.08,32.49632855]
[1742561864134,24.56492855,126.12,126.08,7.9314]
[1742561864552,24.56492855,126.11,126.07,7.9321]
[1742561864935,24.56492855,126.08,126.04,6.2978]
[1742561865144,24.56492855,126.07,126.04,6.2978]
[1742561865450,24.56492855,126.06,126.02,0.063]
[1742561866453,24.56492855,126.05,126.02,0.063]
[1742561866845,32.70492855,126.06,126.02,0.063]
[1742561867036,24.56492855,126.03,126.02,0.063]
[1742561867254,0.56864628,126.05,126.02,0.063]
[1742561867445,24.56492855,126.05,126.02,0.063]
[1742561867645,32.70492855,126.06,126.02,0.063]
[1742561867947,24.56492855,126.05,126.02,0.063]
[1742561868144,24.56492855,126.04,126.02,0.063]
[1742561868374,24.56492855,126.03,126.02,0.063]
[1742561869461,26.70810682,126.03,126.02,0.063]
[1742561869639,46.70810682,126.03,126.02,0.063]
[1742561869845,45.13357483,126.03,126.02,0.063]
[1742561870040,54.64270682,126.03,126.02,0.063]
[1742561870451,53.06817483,126.03,126.02,0.063]
[1742561871566,71.71782369,126.03,126.02,0.063]
[1742561871749,71.71782369,126.03,126.0,0.03]
[1742561871939,33.06937483,126.01,126.0,0.03]
[1742561872140,57.63430338,126.01,125.99,0.03]
[1742561872346,25.13357483,126.0,125.99,0.03]
[1742561872653,24.56492855,126.0,125.99,0.03]
[1742561873255,49.69850338,126.0,125.99,0.03]
[1742561873459,51.27303537,126.0,125.99,0.03]
[1742561873972,2.14317827,126.0,125.99,0.03]
[1742561874145,34.64460682,126.0,125.99,0.03]
[1742561874346,33.07007483,126.0,125.99,0.03]